{"text_format":"3","workbook":"xlsx","n_sheets":1,"sheets":["FELÚJÍTÁSI KÖLTSÉGEK"],"not_rendered":{"images":2,"defined_names":4},"read":"whole","date_system":"1900"}

{"sheet":"FELÚJÍTÁSI KÖLTSÉGEK","index":0,"n_rows":28,"n_cols":8,"rows_kept":28,"merged":[[25,1,25,5],[26,1,26,5],[27,1,27,5]]}
[null,"KONYHAFELÚJÍTÁS KÖLTSÉGÉNEK KISZÁMÍTÁSA"]
[]
[null,"Kategória","Tételek","Mennyiség","Becsült költség","Tényleges költség","Teljes becsült költség","Teljes tényleges költség"]
[null,"Szekrények","Alsó szekrények: moduláris, normál kivitelű (mennyiség folyóméterben)",25,{"v":5,"d":"5.00 Ft"},null,{"$f":"Adatok[[#This Row],[Mennyiség]]*Adatok[[#This Row],[Becsült költség]]","v":{"v":125,"d":"125 Ft"}},{"$f":"Adatok[[#This Row],[Mennyiség]]*Adatok[[#This Row],[Tényleges költség]]","v":{"v":0,"d":"0 Ft"}}]
[null,"Szekrények","Felső szekrények: moduláris, normál kivitelű (mennyiség folyóméterben)",25,{"v":3.5,"d":"3.50 Ft"},null,{"$f":"Adatok[[#This Row],[Mennyiség]]*Adatok[[#This Row],[Becsült költség]]","v":{"v":87.5,"d":"88 Ft"}},{"$f":"Adatok[[#This Row],[Mennyiség]]*Adatok[[#This Row],[Tényleges költség]]","v":{"v":0,"d":"0 Ft"}}]
[null,"Tisztítóberendezések","Mosogatógép: normál kivitelű",1,{"v":250,"d":"250.00 Ft"},null,{"$f":"Adatok[[#This Row],[Mennyiség]]*Adatok[[#This Row],[Becsült költség]]","v":{"v":250,"d":"250 Ft"}},{"$f":"Adatok[[#This Row],[Mennyiség]]*Adatok[[#This Row],[Tényleges költség]]","v":{"v":0,"d":"0 Ft"}}]
[null,"Tisztítóberendezések","Hulladékfeldolgozó: normál kivitelű",1,{"v":175,"d":"175.00 Ft"},null,{"$f":"Adatok[[#This Row],[Mennyiség]]*Adatok[[#This Row],[Becsült költség]]","v":{"v":175,"d":"175 Ft"}},{"$f":"Adatok[[#This Row],[Mennyiség]]*Adatok[[#This Row],[Tényleges költség]]","v":{"v":0,"d":"0 Ft"}}]
[null,"Főzőberendezések","Tűzhely: szabadon álló, normál kivitelű",1,{"v":375,"d":"375.00 Ft"},null,{"$f":"Adatok[[#This Row],[Mennyiség]]*Adatok[[#This Row],[Becsült költség]]","v":{"v":375,"d":"375 Ft"}},{"$f":"Adatok[[#This Row],[Mennyiség]]*Adatok[[#This Row],[Tényleges költség]]","v":{"v":0,"d":"0 Ft"}}]
[null,"Főzőberendezések","Mikrohullámú sütő: normál kivitelű",1,{"v":300,"d":"300.00 Ft"},null,{"$f":"Adatok[[#This Row],[Mennyiség]]*Adatok[[#This Row],[Becsült költség]]","v":{"v":300,"d":"300 Ft"}},{"$f":"Adatok[[#This Row],[Mennyiség]]*Adatok[[#This Row],[Tényleges költség]]","v":{"v":0,"d":"0 Ft"}}]
[null,"Pultok","Szilárd felület (mennyiség folyóméterben)",23,{"v":10,"d":"10.00 Ft"},null,{"$f":"Adatok[[#This Row],[Mennyiség]]*Adatok[[#This Row],[Becsült költség]]","v":{"v":230,"d":"230 Ft"}},{"$f":"Adatok[[#This Row],[Mennyiség]]*Adatok[[#This Row],[Tényleges költség]]","v":{"v":0,"d":"0 Ft"}}]
[null,"Ajtók","Belső: furnérozott deszka",1,{"v":65,"d":"65.00 Ft"},null,{"$f":"Adatok[[#This Row],[Mennyiség]]*Adatok[[#This Row],[Becsült költség]]","v":{"v":65,"d":"65 Ft"}},{"$f":"Adatok[[#This Row],[Mennyiség]]*Adatok[[#This Row],[Tényleges költség]]","v":{"v":0,"d":"0 Ft"}}]
[null,"Egyebek","Egyebek: átfolyós vízmelegítő – normál kivitelű",1,{"v":120,"d":"120.00 Ft"},null,{"$f":"Adatok[[#This Row],[Mennyiség]]*Adatok[[#This Row],[Becsült költség]]","v":{"v":120,"d":"120 Ft"}},{"$f":"Adatok[[#This Row],[Mennyiség]]*Adatok[[#This Row],[Tényleges költség]]","v":{"v":0,"d":"0 Ft"}}]
[null,"Egyebek","Egyebek: szappanadagoló",1,{"v":40,"d":"40.00 Ft"},null,{"$f":"Adatok[[#This Row],[Mennyiség]]*Adatok[[#This Row],[Becsült költség]]","v":{"v":40,"d":"40 Ft"}},{"$f":"Adatok[[#This Row],[Mennyiség]]*Adatok[[#This Row],[Tényleges költség]]","v":{"v":0,"d":"0 Ft"}}]
[null,"Csapok","Csap: karos, normál kivitelű",1,{"v":130,"d":"130.00 Ft"},null,{"$f":"Adatok[[#This Row],[Mennyiség]]*Adatok[[#This Row],[Becsült költség]]","v":{"v":130,"d":"130 Ft"}},{"$f":"Adatok[[#This Row],[Mennyiség]]*Adatok[[#This Row],[Tényleges költség]]","v":{"v":0,"d":"0 Ft"}}]
[null,"Padlóburkolat","Laminált (mennyiség négyzetméterben)",165,{"v":3.5,"d":"3.50 Ft"},null,{"$f":"Adatok[[#This Row],[Mennyiség]]*Adatok[[#This Row],[Becsült költség]]","v":{"v":577.5,"d":"578 Ft"}},{"$f":"Adatok[[#This Row],[Mennyiség]]*Adatok[[#This Row],[Tényleges költség]]","v":{"v":0,"d":"0 Ft"}}]
[null,"Mosógépek","Mosógép: normál kivitelű",1,{"v":500,"d":"500.00 Ft"},null,{"$f":"Adatok[[#This Row],[Mennyiség]]*Adatok[[#This Row],[Becsült költség]]","v":{"v":500,"d":"500 Ft"}},{"$f":"Adatok[[#This Row],[Mennyiség]]*Adatok[[#This Row],[Tényleges költség]]","v":{"v":0,"d":"0 Ft"}}]
[null,"Mosógépek","Szárítógép: normál kivitelű",1,{"v":375,"d":"375.00 Ft"},null,{"$f":"Adatok[[#This Row],[Mennyiség]]*Adatok[[#This Row],[Becsült költség]]","v":{"v":375,"d":"375 Ft"}},{"$f":"Adatok[[#This Row],[Mennyiség]]*Adatok[[#This Row],[Tényleges költség]]","v":{"v":0,"d":"0 Ft"}}]
[null,"Világítás","Világítás: süllyesztett hengeres",4,{"v":35,"d":"35.00 Ft"},null,{"$f":"Adatok[[#This Row],[Mennyiség]]*Adatok[[#This Row],[Becsült költség]]","v":{"v":140,"d":"140 Ft"}},{"$f":"Adatok[[#This Row],[Mennyiség]]*Adatok[[#This Row],[Tényleges költség]]","v":{"v":0,"d":"0 Ft"}}]
[null,"Hűtőszekrények","Hűtőszekrény: szabadon álló, luxuskivitelű",1,{"v":1200,"d":"1,200.00 Ft"},null,{"$f":"Adatok[[#This Row],[Mennyiség]]*Adatok[[#This Row],[Becsült költség]]","v":{"v":1200,"d":"1,200 Ft"}},{"$f":"Adatok[[#This Row],[Mennyiség]]*Adatok[[#This Row],[Tényleges költség]]","v":{"v":0,"d":"0 Ft"}}]
[null,"Mosogatók","Kétkagylós rozsdamentes acél, luxuskivitelű",1,{"v":125,"d":"125.00 Ft"},null,{"$f":"Adatok[[#This Row],[Mennyiség]]*Adatok[[#This Row],[Becsült költség]]","v":{"v":125,"d":"125 Ft"}},{"$f":"Adatok[[#This Row],[Mennyiség]]*Adatok[[#This Row],[Tényleges költség]]","v":{"v":0,"d":"0 Ft"}}]
[null,"Szellőzés","Kürtős egység: kivezetett, normál kivitelű",1,{"v":180,"d":"180.00 Ft"},null,{"$f":"Adatok[[#This Row],[Mennyiség]]*Adatok[[#This Row],[Becsült költség]]","v":{"v":180,"d":"180 Ft"}},{"$f":"Adatok[[#This Row],[Mennyiség]]*Adatok[[#This Row],[Tényleges költség]]","v":{"v":0,"d":"0 Ft"}}]
[null,"Falak","Lambéria (mennyiség négyzetméterben)",70,{"v":2,"d":"2.00 Ft"},null,{"$f":"Adatok[[#This Row],[Mennyiség]]*Adatok[[#This Row],[Becsült költség]]","v":{"v":140,"d":"140 Ft"}},{"$f":"Adatok[[#This Row],[Mennyiség]]*Adatok[[#This Row],[Tényleges költség]]","v":{"v":0,"d":"0 Ft"}}]
[null,"Ablakok","Tolóablakok",2,{"v":120,"d":"120.00 Ft"},null,{"$f":"Adatok[[#This Row],[Mennyiség]]*Adatok[[#This Row],[Becsült költség]]","v":{"v":240,"d":"240 Ft"}},{"$f":"Adatok[[#This Row],[Mennyiség]]*Adatok[[#This Row],[Tényleges költség]]","v":{"v":0,"d":"0 Ft"}}]
[null,"Egyéb",{"$nulls":4},{"$f":"Adatok[[#This Row],[Mennyiség]]*Adatok[[#This Row],[Becsült költség]]","v":{"v":0,"d":"0 Ft"}},{"$f":"Adatok[[#This Row],[Mennyiség]]*Adatok[[#This Row],[Tényleges költség]]","v":{"v":0,"d":"0 Ft"}}]
[null,"Összesen",null,null,{"$f":"SUBTOTAL(109,Adatok[Becsült költség])","v":{"v":4014,"d":"4,014.00 Ft"}},{"$f":"SUBTOTAL(109,Adatok[Tényleges költség])","v":{"v":0,"d":"0.00 Ft"}},{"$f":"SUBTOTAL(109,Adatok[Teljes becsült költség])","v":{"v":5375,"d":"5,375.00 Ft"}},{"$f":"SUBTOTAL(109,Adatok[Teljes tényleges költség])","v":{"v":0,"d":"0.00 Ft"}}]
[null,"Részösszeg",{"$nulls":4},{"$f":"SUBTOTAL(109,Adatok[Teljes becsült költség])","v":{"v":5375,"d":"5,375.00 Ft"}},{"$f":"SUBTOTAL(109,Adatok[Teljes tényleges költség])","v":{"v":0,"d":"0.00 Ft"}}]
[null,"Váratlan költségek – plusz 30%",{"$nulls":4},{"$f":"G26*0.3","v":{"v":1612.5,"d":"1,612.50 Ft"}},{"$f":"H26*0.3","v":{"v":0,"d":"0.00 Ft"}}]
[null,"Összesen",{"$nulls":4},{"$f":"SUM(G26:G27)","v":{"v":6987.5,"d":"6,987.50 Ft"}},{"$f":"SUM(H26:H27)","v":{"v":0,"d":"0.00 Ft"}}]